fUSD/lending_fUSD_20250512
["ID","MTS","AMOUNT","RATE_DAILY","PERIOD"]
[360811935,1747036149839,163.96,0.00012164,2]
[360811940,1747036156543,250.0,0.00012164,2]
[360811941,1747036157639,-119.69636328,0.00012558,2]
[360811942,1747036157677,-60.60727344,0.00012559,2]
[360811945,1747036162725,-93.47241708,0.00012559,2]
[360811946,1747036162796,-125.02297386,0.00012559,2]
[360811949,1747036168616,-152.29118431,0.00012559,2]
[360811950,1747036172763,-222.68584183,0.00012559,2]
[360811951,1747036172842,-129.18185364,0.00012559,2]
[360811954,1747036187714,-311.96144063,0.00012559,2]
[360811955,1747036200687,-58.85670573,0.00012559,2]
[360811956,1747036200768,-500.0,0.00012559,2]
[360811957,1747036200847,-500.0,0.00012559,2]
[360811958,1747036200926,-500.0,0.00012559,2]
[360811959,1747036201002,-500.0,0.00012559,2]
[360811960,1747036201083,-500.0,0.00012559,2]
[360811961,1747036201164,-500.0,0.00012559,2]
[360811962,1747036201244,-500.0,0.00012559,2]
[360811963,1747036201323,-500.0,0.00012559,2]
[360811964,1747036201408,-500.0,0.00012559,2]
[360811965,1747036201488,-500.0,0.00012559,2]
[360811966,1747036201571,-500.0,0.00012559,2]
[360811967,1747036201650,-500.0,0.00012559,2]
[360811968,1747036201739,-500.0,0.00012559,2]
[360811969,1747036201823,-500.0,0.00012559,2]
[360811970,1747036201917,-500.0,0.00012559,2]
[360811971,1747036202002,-500.0,0.00012559,2]
[360811972,1747036202086,-500.0,0.00012559,2]
[360811973,1747036202174,-500.0,0.00012559,2]
[360811974,1747036202257,-500.0,0.00012559,2]
[360811975,1747036202343,-500.0,0.00012559,2]
[360811976,1747036202430,-500.0,0.00012559,2]
[360811977,1747036202518,-500.0,0.00012559,2]
[360811978,1747036202608,-500.0,0.00012559,2]
[360811979,1747036202698,-500.0,0.00012559,2]
[360811980,1747036202791,-500.0,0.00012559,2]
[360811981,1747036202882,-500.0,0.00012559,2]
[360811982,1747036202975,-500.0,0.00012559,2]
[360811985,1747036203073,-500.0,0.00012559,2]
[360811987,1747036203181,-500.0,0.00012559,2]
[360811988,1747036203294,-500.0,0.00012559,2]
[360811989,1747036203413,-500.0,0.00012559,2]
[360811990,1747036203517,-500.0,0.00012559,2]
[360811991,1747036203622,-500.0,0.00012559,2]
[360811992,1747036203731,-500.0,0.00012559,2]
[360811993,1747036203839,-500.0,0.00012559,2]
[360811994,1747036203954,-500.0,0.00012559,2]
[360811995,1747036204069,-500.0,0.00012559,2]
[360811996,1747036204185,-500.0,0.00012559,2]
[360811997,1747036204299,-500.0,0.00012559,2]
[360811998,1747036204401,-500.0,0.00012559,2]
[360811999,1747036204510,-500.0,0.00012559,2]
[360812000,1747036204615,-500.0,0.00012559,2]
[360812001,1747036204730,-500.0,0.00012559,2]
[360812002,1747036204843,-500.0,0.00012559,2]
[360812003,1747036204957,-500.0,0.00012559,2]
[360812004,1747036205070,-500.0,0.00012559,2]
[360812005,1747036205182,-500.0,0.00012559,2]
[360812006,1747036205297,-500.0,0.00012559,2]
[360812007,1747036205401,-500.0,0.00012559,2]
[360812008,1747036205508,-500.0,0.00012559,2]
[360812009,1747036205617,-500.0,0.00012559,2]
[360812010,1747036205730,-500.0,0.00012559,2]
[360812011,1747036205843,-500.0,0.00012559,2]
[360812012,1747036205960,-385.40850263,0.00012559,2]
[360812013,1747036206071,-500.0,0.00012559,2]
[360812014,1747036206193,-500.0,0.00012559,2]
[360812015,1747036206306,-500.0,0.00012559,2]
[360812016,1747036206410,-500.0,0.00012559,2]
[360812017,1747036206524,-500.0,0.00012559,2]
[360812018,1747036206638,-500.0,0.00012559,2]
[360812019,1747036206740,-500.0,0.00012559,2]
[360812020,1747036206849,-500.0,0.00012559,2]
[360812021,1747036206947,-500.0,0.00012559,2]
[360812022,1747036207050,-500.0,0.00012559,2]
[360812023,1747036207154,-500.0,0.00012559,2]
[360812024,1747036207265,-500.0,0.00012559,2]
[360812025,1747036207369,-500.0,0.00012559,2]
[360812026,1747036207475,-500.0,0.00012559,2]
[360812027,1747036207579,-500.0,0.00012559,2]
[360812028,1747036207685,-500.0,0.00012559,2]
[360812029,1747036207790,-500.0,0.00012559,2]
[360812030,1747036207882,-297.68177568,0.00012559,2]
[360812031,1747036207909,-245.78,0.00012564,2]
[360812032,1747036207941,-245.78,0.00012568,2]
[360812033,1747036207969,-8506.32,0.00012571,2]
[360812034,1747036207996,-245.78,0.00012571,2]
[360812035,1747036208024,-14.39301596,0.00012574,2]
[360812036,1747036209035,-262.57356591,0.00012558,2]
[360812037,1747036218210,-286.38362061,0.00012547,2]
[360812038,1747036230012,-343.29653046,0.00012547,2]
[360812039,1747036230038,-37.42643409,0.00012558,2]
[360812040,1747036230066,-1200.0,0.00012558,2]
[360812041,1747036230094,-300.0,0.00012558,2]
[360812042,1747036230171,-500.0,0.00012559,2]
[360812043,1747036230255,-500.0,0.00012559,2]
[360812044,1747036230333,-500.0,0.00012559,2]
[360812045,1747036230413,-500.0,0.00012559,2]
[360812046,1747036230494,-500.0,0.00012559,2]
[360812047,1747036230573,-500.0,0.00012559,2]
[360812048,1747036230656,-119.27703545,0.00012559,2]
[360812059,1747036231477,-380.72296455,0.00012559,2]
[360812060,1747036231487,-500.0,0.00012559,2]
[360812061,1747036231496,-500.0,0.00012559,2]
[360812062,1747036231506,-313.08739636,0.00012559,2]
[360812063,1747036231515,-231.38698404,0.00012574,2]
[360812064,1747036231524,-245.78,0.00012578,2]
[360812065,1747036231533,-245.78,0.00012581,2]
[360812066,1747036231543,-245.78,0.00012584,2]
[360812067,1747036231553,-245.78,0.00012588,2]
[360812068,1747036231562,-245.78,0.00012591,2]
[360812069,1747036231571,-245.78,0.00012594,2]
[360812070,1747036231580,-245.78,0.00012598,2]
[360812071,1747036231590,-245.78,0.00012601,2]
[360812072,1747036231599,-245.78,0.00012604,2]
[360812073,1747036231609,-245.78,0.00012608,2]
[360812074,1747036231618,-245.78,0.00012611,2]
[360812075,1747036231628,-245.78,0.00012614,2]
[360812076,1747036231637,-245.78,0.00012617,2]
[360812077,1747036231646,-245.78,0.00012621,2]
[360812078,1747036231657,-245.78,0.00012624,2]
[360812079,1747036231666,-156.19,0.00012741,2]
[360812080,1747036231675,-514.18,0.00012741,2]
[360812081,1747036231687,-256.5,0.00012877,2]
[360812082,1747036231697,-555.92,0.00012958,2]
[360812083,1747036231916,-225.31265505,0.00013091,2]
[360812084,1747036231930,-12.68734495,0.00013091,2]
[360812085,1747036231940,-179.0,0.00013136,2]
[360812086,1747036231949,-819.0,0.00013156,2]
[360812087,1747036231959,-258.0,0.00013175,2]
[360812088,1747036231970,-352.66,0.000132,2]
[360812089,1747036231979,-1700.0,0.000132,4]
[360812090,1747036231989,-1786.0,0.00013202,2]
[360812091,1747036231998,-1369.0,0.0001324,2]
[360812092,1747036232007,-1866.0,0.00013267,2]
[360812093,1747036232016,-3400.0,0.000133,4]
[360812094,1747036232026,-1752.0,0.00013332,2]
[360812095,1747036232035,-270.5499,0.00013398,2]
[360812096,1747036232046,-5100.0,0.000134,4]
[360812097,1747036232055,-5742.52454867,0.00013431,2]
[360812098,1747036232066,-7488.23665133,0.00013431,2]
[360812099,1747036232075,-1800.892,0.00013431,2]
[360812100,1747036232084,-749.52469197,0.00013439,2]
[360812101,1747036232094,-246.0364,0.00013487,2]
[360812102,1747036232103,-10538.27,0.00013488,2]
[360812103,1747036232113,-6882.50332927,0.00013488,2]
[360812104,1747036232125,-207.4,0.0001349,2]
[360812105,1747036232135,-668.65185757,0.0001349,2]
[360812106,1747036232144,-19243.97603689,0.00013498,2]
[360812107,1747036232173,-12153.95906311,0.00013498,2]
[360812108,1747036232187,-21078.2571,0.00013498,2]
[360812109,1747036232196,-596.2876,0.00013498,2]
[360812110,1747036232205,-1174.7658,0.00013498,2]
[360812111,1747036232215,-1057.8445,0.00013498,2]
[360812112,1747036232224,-799.6414,0.00013498,2]
[360812113,1747036232233,-2500.0,0.00013498,2]
[360812114,1747036232243,-6900.0,0.000135,4]
[360812115,1747036232252,-816.0,0.00013545,2]
[360812116,1747036232261,-2207.95997,0.0001356,2]
[360812117,1747036232271,-711.23308466,0.00013571,2]
[360812118,1747036232283,-58.54194433,0.00013571,2]
[360812119,1747036232292,-500.0,0.00013588,2]
[360812120,1747036232302,-2000.0,0.00013588,2]
[360812121,1747036232311,-500.0,0.00013588,2]
[360812122,1747036232320,-200.0,0.00013588,2]
[360812123,1747036232330,-510.02503304,0.00013598,2]
[360812124,1747036232339,-769.77502899,0.00013598,2]
[360812125,1747036232350,-155.81354303,0.00013598,2]
[360812126,1747036232359,-4437.05216061,0.00013598,2]
[360812127,1747036232370,-7382.376725,0.00013598,2]
[360812128,1747036232381,-6127.228,0.00013598,2]
[360812129,1747036232392,-5363.23904723,0.00013598,2]
[360812130,1747036232403,-450.037073,0.00013598,2]
[360812131,1747036232415,-418.73967145,0.00013598,2]
[360812132,1747036232432,-777.14480919,0.00013598,2]
[360812133,1747036232443,-3274.98736321,0.00013598,2]
[360812134,1747036232452,-198.81402892,0.00013598,2]
[360812135,1747036232462,-170.07629031,0.00013598,2]
[360812136,1747036232471,-2751.16229319,0.00013598,2]
[360812137,1747036232479,-735.16002437,0.00013598,2]
[360812138,1747036232490,-1377.50150943,0.00013598,2]
[360812139,1747036232501,-1579.13148732,0.00013598,2]
[360812140,1747036232525,-12846.64903981,0.00013598,2]
[360812141,1747036232536,-9424.05535812,0.00013598,2]
[360812142,1747036232547,-11511.12818095,0.00013598,2]
[360812143,1747036232556,-1606.1887,0.00013598,2]
[360812144,1747036232566,-1000.0,0.00013598,2]
[360812145,1747036232575,-500.0,0.00013598,2]
[360812146,1747036232584,-7130.48244757,0.000136,2]
[360812147,1747036232593,-8056.45538238,0.000136,2]
[360812148,1747036232605,-1011.0,0.000136,2]
[360812149,1747036232616,-8600.0,0.000136,4]
[360812150,1747036232625,-2311.6768953,0.00013629,2]
[360812151,1747036232635,-255.0,0.00013652,2]
[360812152,1747036232648,-33.2623938,0.00013673,2]
[360812153,1747036232665,-466.7376062,0.00013673,2]
[360812154,1747036232674,-500.0,0.00013673,2]
[360812155,1747036232688,-500.0,0.00013673,2]
[360812156,1747036232697,-500.0,0.00013673,2]
[360812157,1747036232706,-302.35007709,0.00013673,2]
[360812158,1747036232716,-500.0,0.00013673,2]
[360812159,1747036232725,-500.0,0.00013673,2]
[360812160,1747036232734,-35.88058779,0.00013673,2]
[360812161,1747036232746,-464.11941221,0.00013673,2]
[360812162,1747036232755,-500.0,0.00013673,2]
[360812163,1747036232765,-500.0,0.00013673,2]
[360812164,1747036232774,-500.0,0.00013673,2]
[360812165,1747036232783,-163.96,0.00013684,2]
[360812166,1747036232794,-65842.32836953,0.00013691,2]
[360812169,1747036237532,-1912.9,0.00013691,2]
[360812170,1747036237543,-70304.11997764,0.00013691,2]
[360812171,1747036237554,-4200.4,0.00013691,2]
[360812172,1747036237566,-2564.0,0.00013691,2]
[360812173,1747036237617,-11065.31831943,0.00013691,2]
[360812174,1747036237627,-153.029096,0.00013698,2]
[360812175,1747036237637,-401.28922488,0.00013698,2]
[360812176,1747036237646,-264.841468,0.00013698,2]
[360812177,1747036237656,-343.733017,0.00013698,2]
[360812178,1747036237665,-343.733017,0.00013698,2]
[360812179,1747036237674,-343.733017,0.00013698,2]
[360812180,1747036237686,-343.733017,0.00013698,2]
[360812181,1747036237696,-343.733017,0.00013698,2]
[360812182,1747036237705,-343.733017,0.00013698,2]
[360812183,1747036237715,-343.733017,0.00013698,2]
[360812184,1747036237725,-343.733017,0.00013698,2]
[360812185,1747036237735,-343.733017,0.00013698,2]
[360812186,1747036237745,-343.733017,0.00013698,2]
[360812187,1747036237755,-343.733017,0.00013698,2]
[360812188,1747036237764,-343.733017,0.00013698,2]
[360812189,1747036237773,-343.733017,0.00013698,2]
[360812190,1747036237783,-343.733017,0.00013698,2]
[360812191,1747036237792,-343.733017,0.00013698,2]
[360812192,1747036237802,-343.733017,0.00013698,2]
[360812193,1747036237811,-343.733017,0.00013698,2]
[360812194,1747036237823,-343.733017,0.00013698,2]
[360812195,1747036237833,-343.733017,0.00013698,2]
[360812196,1747036237843,-343.733017,0.00013698,2]
[360812197,1747036237853,-343.733017,0.00013698,2]
[360812198,1747036237864,-343.733017,0.00013698,2]
[360812199,1747036237873,-159.909117,0.00013698,2]
[360812201,1747036237882,-159.909117,0.00013698,2]
[360812203,1747036237894,-159.909117,0.00013698,2]
[360812205,1747036237903,-159.909117,0.00013698,2]
[360812207,1747036237913,-159.909117,0.00013698,2]
[360812209,1747036237922,-159.909117,0.00013698,2]
[360812211,1747036237933,-159.909117,0.00013698,2]
[360812213,1747036237943,-159.909117,0.00013698,2]
[360812215,1747036237952,-159.909117,0.00013698,2]
[360812216,1747036237961,-159.909117,0.00013698,2]
[360812218,1747036237971,-159.909117,0.00013698,2]
[360812220,1747036237981,-159.909117,0.00013698,2]
[360812222,1747036237990,-159.909117,0.00013698,2]
[360812224,1747036238000,-163.85887,0.00013698,2]
[360812226,1747036238010,-163.85887,0.00013698,2]
[360812228,1747036238019,-400.0,0.00013698,2]
[360812230,1747036238028,-400.0,0.00013698,2]
[360812232,1747036238038,-460.56609998,0.00013698,2]
[360812234,1747036238047,-814.96625536,0.00013698,2]
[360812237,1747036238072,-1203.96974464,0.00013698,2]
[360812239,1747036238082,-400.0,0.00013698,2]
[360812241,1747036238091,-296.89121272,0.00013698,2]
[360812243,1747036238101,-455.502423,0.00013698,2]
[360812245,1747036238110,-455.502423,0.00013698,2]
[360812248,1747036238122,-455.502423,0.00013698,2]
[360812250,1747036238131,-455.502427,0.00013698,2]
[360812252,1747036238141,-400.0,0.00013698,2]
[360812254,1747036238151,-400.0,0.00013698,2]
[360812256,1747036238162,-400.0,0.00013698,2]
[360812258,1747036238171,-400.0,0.00013698,2]
[360812260,1747036238187,-400.0,0.00013698,2]
[360812262,1747036238196,-400.0,0.00013698,2]
[360812264,1747036238206,-400.0,0.00013698,2]
[360812266,1747036238215,-400.0,0.00013698,2]
[360812268,1747036238224,-400.0,0.00013698,2]
[360812270,1747036238233,-337.44,0.00013698,2]
[360812272,1747036238242,-400.0,0.00013698,2]
[360812274,1747036238251,-400.0,0.00013698,2]
[360812276,1747036238260,-400.0,0.00013698,2]
[360812278,1747036238269,-400.0,0.00013698,2]
[360812280,1747036238279,-379.88,0.00013698,2]
[360812282,1747036238289,-400.0,0.00013698,2]
[360812285,1747036238304,-400.0,0.00013698,2]
[360812287,1747036238318,-400.0,0.00013698,2]
[360812289,1747036238328,-287.94870594,0.00013698,2]
[360812291,1747036238337,-400.0,0.00013698,2]
[360812293,1747036238347,-400.0,0.00013698,2]
[360812295,1747036238356,-400.0,0.00013698,2]
[360812297,1747036238365,-400.0,0.00013698,2]
[360812299,1747036238375,-400.0,0.00013698,2]
[360812301,1747036238384,-400.0,0.00013698,2]
[360812303,1747036238394,-400.0,0.00013698,2]
[360812305,1747036238404,-215.58765517,0.00013698,2]
[360812307,1747036238413,-346.59296969,0.00013698,2]
[360812309,1747036238423,-400.0,0.00013698,2]
[360812311,1747036238437,-400.0,0.00013698,2]
[360812313,1747036238446,-210.14353936,0.00013698,2]
[360812314,1747036238455,-400.0,0.00013698,2]
[360812315,1747036238465,-400.0,0.00013698,2]
[360812316,1747036238475,-213.20460446,0.00013698,2]
[360812317,1747036238484,-400.0,0.00013698,2]
[360812318,1747036238494,-400.0,0.00013698,2]
[360812319,1747036238503,-198.50846583,0.00013698,2]
[360812320,1747036238513,-400.0,0.00013698,2]
[360812321,1747036238523,-400.0,0.00013698,2]
[360812322,1747036238532,-249.62498677,0.00013698,2]
[360812323,1747036238542,-401.85854131,0.00013698,2]
[360812324,1747036238551,-500.0,0.00013698,2]
[360812325,1747036238561,-500.0,0.00013698,2]
[360812326,1747036238571,-400.0,0.00013698,2]
[360812327,1747036238581,-400.0,0.00013698,2]
[360812328,1747036238592,-200.0,0.00013698,2]
[360812329,1747036238602,-400.0,0.00013698,2]
[360812330,1747036238611,-400.0,0.00013698,2]
[360812331,1747036238621,-212.70819914,0.00013698,2]
[360812332,1747036238630,-400.0,0.00013698,2]
[360812333,1747036238639,-400.0,0.00013698,2]
[360812334,1747036238648,-315.96425299,0.00013698,2]
[360812335,1747036238658,-400.0,0.00013698,2]
[360812336,1747036238668,-400.0,0.00013698,2]
[360812337,1747036238678,-400.0,0.00013698,2]
[360812338,1747036238690,-400.0,0.00013698,2]
[360812339,1747036238699,-400.0,0.00013698,2]
[360812340,1747036238709,-400.0,0.00013698,2]
[360812341,1747036238718,-300.0,0.00013698,2]
[360812342,1747036238728,-329.90614253,0.00013698,2]
[360812343,1747036238737,-400.0,0.00013698,2]
[360812344,1747036238747,-400.0,0.00013698,2]
[360812345,1747036238757,-200.0,0.00013698,2]
[360812346,1747036238766,-400.0,0.00013698,2]
[360812347,1747036238776,-400.0,0.00013698,2]
[360812348,1747036238785,-400.0,0.00013698,2]
[360812349,1747036238796,-400.0,0.00013698,2]
[360812350,1747036238806,-400.0,0.00013698,2]
[360812351,1747036238815,-400.0,0.00013698,2]
[360812352,1747036238825,-400.0,0.00013698,2]
[360812353,1747036238834,-200.0,0.00013698,2]
[360812354,1747036238844,-167.297124,0.00013698,2]
[360812355,1747036238854,-546.99969164,0.00013698,2]
[360812356,1747036238863,-400.0,0.00013698,2]
[360812357,1747036238873,-400.0,0.00013698,2]
[360812358,1747036238883,-400.0,0.00013698,2]
[360812359,1747036238892,-305.58997366,0.00013698,2]
[360812360,1747036238902,-479.11604156,0.00013698,2]
[360812361,1747036238912,-151.0,0.00013698,2]
[360812362,1747036238922,-400.0,0.00013698,2]
[360812363,1747036238937,-400.0,0.00013698,2]
[360812364,1747036238948,-400.0,0.00013698,2]
[360812365,1747036238958,-400.0,0.00013698,2]
[360812366,1747036238969,-400.0,0.00013698,2]
[360812367,1747036238979,-400.0,0.00013698,2]
[360812368,1747036238989,-400.0,0.00013698,2]
[360812369,1747036238999,-400.0,0.00013698,2]
[360812370,1747036239009,-460.33471298,0.00013698,2]
[360812371,1747036239019,-400.0,0.00013698,2]
[360812372,1747036239029,-400.0,0.00013698,2]
[360812373,1747036239038,-400.0,0.00013698,2]
[360812374,1747036239048,-400.0,0.00013698,2]
[360812375,1747036239058,-400.0,0.00013698,2]
[360812376,1747036239067,-248.40744893,0.00013698,2]
[360812377,1747036239077,-400.0,0.00013698,2]
[360812378,1747036239087,-400.0,0.00013698,2]
[360812379,1747036239097,-400.0,0.00013698,2]
[360812380,1747036239107,-433.26395788,0.00013698,2]
[360812381,1747036239118,-500.0,0.00013698,2]
[360812382,1747036239132,-450.0,0.00013698,2]
[360812383,1747036239142,-1659.45,0.00013698,2]
[360812384,1747036239152,-1659.45,0.00013698,2]
[360812385,1747036239162,-400.0,0.00013698,2]
[360812386,1747036239172,-1659.45,0.00013698,2]
[360812387,1747036239184,-400.0,0.00013698,2]
[360812388,1747036239195,-1659.45,0.00013698,2]
[360812389,1747036239206,-400.0,0.00013698,2]
[360812391,1747036239439,-300.0,0.00013698,2]
[360812392,1747036239451,-400.0,0.00013698,2]
[360812393,1747036239460,-400.0,0.00013698,2]
[360812394,1747036239471,-400.0,0.00013698,2]
[360812395,1747036239481,-400.0,0.00013698,2]
[360812396,1747036239490,-400.0,0.00013698,2]
[360812397,1747036239504,-1659.45,0.00013698,2]
[360812398,1747036239515,-400.0,0.00013698,2]
[360812402,1747036239525,-1659.45,0.00013698,2]
[360812403,1747036239535,-400.0,0.00013698,2]
[360812404,1747036239545,-1659.45,0.00013698,2]
[360812405,1747036239555,-400.0,0.00013698,2]
[360812406,1747036239564,-1659.45,0.00013698,2]
[360812407,1747036239574,-400.0,0.00013698,2]
[360812408,1747036239585,-618.61364033,0.00013698,2]
[360812410,1747036239973,-1040.83635967,0.00013698,2]
[360812411,1747036239983,-400.0,0.00013698,2]
[360812412,1747036239993,-1659.45,0.00013698,2]
[360812413,1747036240003,-400.0,0.00013698,2]
[360812414,1747036240013,-1659.45,0.00013698,2]
[360812415,1747036240024,-400.0,0.00013698,2]
[360812416,1747036240033,-1659.45,0.00013698,2]
[360812417,1747036240042,-400.0,0.00013698,2]
[360812418,1747036240052,-1659.45,0.00013698,2]
[360812419,1747036240063,-77.68518051,0.00013698,2]
[360812420,1747036240084,-322.31481949,0.00013698,2]
[360812421,1747036240093,-40.04618052,0.00013698,2]
[360812422,1747036240106,-1153.86737547,0.00013698,2]
[360812423,1747036240118,-459.13262453,0.00013698,2]
[360812424,1747036240132,-6.40381948,0.00013698,2]
[360812425,1747036240141,-400.0,0.00013698,2]
[360812426,1747036240151,-1659.45,0.00013698,2]
[360812427,1747036240161,-400.0,0.00013698,2]
[360812428,1747036240171,-1659.45,0.00013698,2]
[360812429,1747036240186,-400.0,0.00013698,2]
[360812430,1747036240196,-1659.45,0.00013698,2]
[360812431,1747036240206,-400.0,0.00013698,2]
[360812432,1747036240216,-1659.45,0.00013698,2]
[360812433,1747036240226,-400.0,0.00013698,2]
[360812434,1747036240236,-1659.45,0.00013698,2]
[360812435,1747036240246,-400.0,0.00013698,2]
[360812436,1747036240255,-424.14905654,0.00013698,2]
[360812437,1747036240264,-1659.45,0.00013698,2]
[360812438,1747036240274,-400.0,0.00013698,2]
[360812439,1747036240283,-1659.45,0.00013698,2]
[360812440,1747036240293,-273.2,0.00013698,2]
[360812441,1747036240303,-1659.45,0.00013698,2]
[360812442,1747036240312,-899.78242325,0.00013698,2]
[360812443,1747036240328,-759.66757675,0.00013698,2]
[360812444,1747036240337,-1659.61257206,0.00013698,2]
[360812445,1747036240346,-245.15163292,0.00013698,2]
[360812446,1747036240355,-400.0,0.00013698,2]
[360812447,1747036240365,-343.6099687,0.00013698,2]
[360812448,1747036240374,-400.0,0.00013698,2]
[360812449,1747036240384,-400.0,0.00013698,2]
[360812450,1747036240393,-400.0,0.00013698,2]
[360812451,1747036240402,-400.0,0.00013698,2]
[360812452,1747036240411,-400.0,0.00013698,2]
[360812453,1747036240421,-400.0,0.00013698,2]
[360812454,1747036240433,-400.0,0.00013698,2]
[360812455,1747036240442,-400.0,0.00013698,2]
[360812456,1747036240451,-400.0,0.00013698,2]
[360812457,1747036240460,-285.59,0.00013698,2]
[360812458,1747036240469,-400.0,0.00013698,2]
[360812459,1747036240481,-400.0,0.00013698,2]
[360812460,1747036240491,-400.0,0.00013698,2]
[360812461,1747036240501,-400.0,0.00013698,2]
[360812462,1747036240511,-527.2878725,0.00013698,2]
[360812463,1747036240523,-400.0,0.00013698,2]
[360812464,1747036240533,-400.0,0.00013698,2]
[360812465,1747036240543,-400.0,0.00013698,2]
[360812466,1747036240553,-400.0,0.00013698,2]
[360812467,1747036240563,-400.0,0.00013698,2]
[360812468,1747036240572,-400.0,0.00013698,2]
[360812469,1747036240581,-400.0,0.00013698,2]
[360812470,1747036240590,-400.0,0.00013698,2]
[360812471,1747036240599,-236.95156694,0.00013698,2]
[360812472,1747036240610,-537.13,0.00013698,2]
[360812473,1747036240619,-537.13,0.00013698,2]
[360812474,1747036240628,-537.13,0.00013698,2]
[360812475,1747036240638,-537.13,0.00013698,2]
[360812476,1747036240647,-537.13,0.00013698,2]
[360812477,1747036240656,-537.13,0.00013698,2]
[360812478,1747036240666,-537.13,0.00013698,2]
[360812479,1747036240676,-537.13,0.00013698,2]
[360812480,1747036240690,-193.72127423,0.00013698,2]
[360812481,1747036240700,-537.13,0.00013698,2]
[360812482,1747036240710,-537.13,0.00013698,2]
[360812483,1747036240719,-537.13,0.00013698,2]
[360812484,1747036240728,-537.13,0.00013698,2]
[360812485,1747036240738,-537.13,0.00013698,2]
[360812486,1747036240747,-537.13,0.00013698,2]
[360812487,1747036240756,-537.13,0.00013698,2]
[360812488,1747036240766,-537.13,0.00013698,2]
[360812489,1747036240775,-537.13,0.00013698,2]
[360812490,1747036240785,-400.0,0.00013698,2]
[360812491,1747036240794,-537.13,0.00013698,2]
[360812492,1747036240803,-400.0,0.00013698,2]
[360812493,1747036240813,-537.13,0.00013698,2]
[360812494,1747036240822,-537.13,0.00013698,2]
[360812495,1747036240831,-537.13,0.00013698,2]
[360812496,1747036240841,-450.0,0.00013698,2]
[360812497,1747036240850,-400.0,0.00013698,2]
[360812498,1747036240859,-537.13,0.00013698,2]
[360812499,1747036240869,-400.0,0.00013698,2]
[360812500,1747036240878,-491.82095945,0.00013698,2]
[360812501,1747036240887,-537.13,0.00013698,2]
[360812502,1747036240897,-537.26484715,0.00013698,2]
[360812503,1747036240906,-207.26196815,0.00013698,2]
[360812504,1747036240916,-450.0,0.00013698,2]
[360812505,1747036240926,-548.3710987,0.00013698,2]
[360812506,1747036240940,-400.0,0.00013698,2]
[360812507,1747036240949,-400.0,0.00013698,2]
[360812508,1747036240959,-400.0,0.00013698,2]
[360812509,1747036240968,-400.0,0.00013698,2]
[360812510,1747036240977,-484.20264328,0.00013698,2]
[360812511,1747036240989,-785.28,0.00013698,2]
[360812512,1747036240998,-400.0,0.00013698,2]
[360812513,1747036241008,-785.28,0.00013698,2]
[360812514,1747036241018,-523.95697593,0.00013698,2]
[360812515,1747036241027,-381.3518988,0.00013698,2]
[360812516,1747036241036,-785.28,0.00013698,2]
[360812517,1747036241046,-332.22087244,0.00013698,2]
[360812518,1747036242173,-453.05912756,0.00013698,2]
[360812519,1747036242184,-785.28,0.00013698,2]
[360812520,1747036242194,-785.28,0.00013698,2]
[360812521,1747036242204,-264.12254014,0.00013698,2]
[360812522,1747036242313,-521.15745986,0.00013698,2]